fUST/lending_fUST_20250806
["ID","MTS","AMOUNT","RATE_DAILY","PERIOD"]
[377625265,1754465439486,-151.0,0.0002688,7]
[377625266,1754465439496,-151.0,0.0002688,7]
[377625267,1754465439506,-151.0,0.0002688,7]
[377625268,1754465439516,-151.0,0.0002688,7]
[377625269,1754465439526,-151.0,0.0002688,7]
[377625270,1754465439536,-151.0,0.0002688,7]
[377625271,1754465439546,-151.0,0.0002688,7]
[377625272,1754465439556,-151.0,0.0002688,7]
[377625273,1754465439565,-231.78005385,0.0002688,7]
[377625274,1754465439575,-151.0,0.0002688,7]
[377625275,1754465439584,-151.0,0.0002688,7]
[377625276,1754465439593,-151.0,0.0002688,7]
[377625277,1754465439603,-206229.78328406,0.0002688,2]
[377625278,1754465439613,-10420.6243428,0.0002697,2]
[377625279,1754465439623,-806.91462053,0.0002697,2]
[377625280,1754465439638,-500.0,0.00026973,2]
[377625281,1754465439648,-151.0,0.0002698,7]
[377625282,1754465439659,-151.0,0.0002698,7]
[377625283,1754465439671,-596.312707,0.0002698,7]
[377625284,1754465439684,-596.312707,0.0002698,7]
[377625285,1754465439694,-596.312707,0.0002698,7]
[377625286,1754465439704,-596.312707,0.0002698,7]
[377625287,1754465439715,-151.0,0.0002698,7]
[377625288,1754465439724,-151.0,0.0002698,7]
[377625289,1754465439734,-151.0,0.0002698,7]
[377625290,1754465439743,-151.0,0.0002698,7]
[377625291,1754465439753,-151.0,0.0002698,7]
[377625292,1754465439764,-151.0,0.0002698,7]
[377625293,1754465439773,-267.3095,0.0002698,7]
[377625294,1754465439784,-187.330614,0.0002698,7]
[377625295,1754465439793,-187.330614,0.0002698,7]
[377625296,1754465439803,-151.0,0.0002698,7]
[377625297,1754465439812,-151.0,0.0002698,7]
[377625298,1754465439822,-151.0,0.0002698,7]
[377625299,1754465439833,-151.0,0.0002698,7]
[377625301,1754465439842,-176.287472,0.0002698,7]
[377625302,1754465439852,-151.0,0.0002698,7]
[377625304,1754465439861,-314.997207,0.0002698,7]
[377625307,1754465439871,-314.997207,0.0002698,7]
[377625309,1754465439881,-151.0,0.0002698,7]
[377625322,1754465439891,-151.0,0.0002698,7]
[377625323,1754465440037,-613.620501,0.0002698,7]
[377625325,1754465440046,-613.620501,0.0002698,7]
[377625327,1754465440056,-679.513027,0.0002698,7]
[377625330,1754465440067,-679.513027,0.0002698,7]
[377625332,1754465440077,-679.513027,0.0002698,7]
[377625334,1754465440087,-679.513027,0.0002698,7]
[377625336,1754465440096,-262.247174,0.0002698,7]
[377625338,1754465440105,-151.0,0.0002698,7]
[377625340,1754465440114,-151.0,0.0002698,7]
[377625342,1754465440124,-658.256262,0.0002698,7]
[377625343,1754465440134,-658.256262,0.0002698,7]
[377625345,1754465440143,-151.0,0.0002698,7]
[377625347,1754465440153,-151.0,0.0002698,7]
[377625349,1754465440162,-658.256262,0.0002698,7]
[377625352,1754465440172,-658.256262,0.0002698,7]
[377625353,1754465440182,-151.0,0.0002698,7]
[377625356,1754465440192,-151.0,0.0002698,7]
[377625357,1754465440202,-151.0,0.0002698,7]
[377625360,1754465440212,-151.0,0.0002698,7]
[377625361,1754465440221,-151.0,0.0002698,7]
[377625363,1754465440231,-202.15891,0.0002698,7]
[377625364,1754465440240,-153.589545,0.0002698,7]
[377625365,1754465440250,-151.0,0.0002698,7]
[377625366,1754465440261,-151.0,0.0002698,7]
[377625367,1754465440273,-151.0,0.0002698,7]
[377625368,1754465440282,-151.0,0.0002698,7]
[377625369,1754465440293,-10420.6243428,0.0002698,2]
[377625370,1754465440303,-806.91462053,0.0002698,2]
[377625371,1754465440313,-151.0,0.0002699,7]
[377625372,1754465440322,-151.0,0.0002699,7]
[377625374,1754465440332,-151.0,0.0002699,7]
[377625376,1754465440341,-151.0,0.0002699,7]
[377625379,1754465440350,-151.0,0.0002699,7]
[377625382,1754465440360,-53317.12276029,0.0002699,2]
[377625383,1754465440370,-596.312707,0.0002699,7]
[377625384,1754465440380,-596.312707,0.0002699,7]
[377625385,1754465440390,-151.0,0.0002699,7]
[377625386,1754465440399,-160.130306,0.0002699,7]
[377625387,1754465440408,-151.0,0.0002699,7]
[377625388,1754465440418,-165.822057,0.0002699,7]
[377625389,1754465440428,-165.822057,0.0002699,7]
[377625390,1754465440437,-151.0,0.0002699,7]
[377625391,1754465440447,-151.0,0.0002699,7]
[377625392,1754465440456,-155.779602,0.0002699,7]
[377625393,1754465440466,-155.718257,0.0002699,7]
[377625394,1754465440475,-151.0,0.0002699,7]
[377625395,1754465440485,-187.330614,0.0002699,7]
[377625396,1754465440494,-187.330614,0.0002699,7]
[377625397,1754465440504,-263.467326,0.0002699,7]
[377625398,1754465440514,-151.0,0.0002699,7]
[377625399,1754465440527,-151.0,0.0002699,7]
[377625400,1754465440545,-151.0,0.0002699,7]
[377625401,1754465440554,-151.0,0.0002699,7]
[377625402,1754465440564,-314.997207,0.0002699,7]
[377625403,1754465440583,-314.997207,0.0002699,7]
[377625404,1754465440592,-151.0,0.0002699,7]
[377625405,1754465440601,-613.620501,0.0002699,7]
[377625406,1754465440611,-613.620501,0.0002699,7]
[377625407,1754465440620,-679.513027,0.0002699,7]
[377625408,1754465440633,-679.513027,0.0002699,7]
[377625409,1754465440642,-658.256262,0.0002699,7]
[377625410,1754465440652,-151.0,0.0002699,7]
[377625411,1754465440661,-658.256262,0.0002699,7]
[377625412,1754465440671,-151.0,0.0002699,7]
[377625413,1754465440681,-151.0,0.0002699,7]
[377625414,1754465440691,-151.0,0.0002699,7]
[377625415,1754465440703,-151.0,0.0002699,7]
[377625416,1754465440713,-232.525935,0.0002699,7]
[377625417,1754465440722,-301.770876,0.0002699,7]
[377625418,1754465440732,-179.36013227,0.00027,2]
[377625419,1754465440742,-160.0,0.00027,2]
[377625420,1754465440752,-151.0,0.00027164,7]
[377625421,1754465440762,-10420.6243428,0.00027164,2]
[377625422,1754465440771,-806.91462053,0.00027164,2]
[377625423,1754465440781,-153.594947,0.00027169,7]
[377625424,1754465440792,-151.0,0.00027169,7]
[377625425,1754465440801,-151.0,0.00027169,7]
[377625426,1754465440811,-242.169411,0.00027172,7]
[377625427,1754465440820,-187.330614,0.00027172,7]
[377625428,1754465440830,-187.330614,0.00027172,7]
[377625429,1754465440840,-151.0,0.00027172,7]
[377625430,1754465440850,-177.672,0.00027172,7]
[377625431,1754465440860,-151.0,0.00027172,7]
[377625432,1754465440870,-151.0,0.00027172,7]
[377625433,1754465440881,-314.997207,0.00027172,7]
[377625434,1754465440890,-314.997207,0.00027172,7]
[377625435,1754465440900,-613.620501,0.00027172,7]
[377625436,1754465440910,-613.620501,0.00027172,7]
[377625437,1754465440920,-151.0,0.00027173,7]
[377625438,1754465440930,-151.0,0.00027173,7]
[377625439,1754465440939,-151.0,0.00027173,7]
[377625440,1754465440948,-596.312707,0.00027173,7]
[377625441,1754465440958,-596.312707,0.00027173,7]
[377625442,1754465440968,-221.660782,0.00027173,7]
[377625443,1754465440978,-679.513027,0.00027173,7]
[377625444,1754465440988,-679.513027,0.00027173,7]
[377625445,1754465440998,-658.256262,0.00027173,7]
[377625446,1754465441007,-151.0,0.00027173,7]
[377625447,1754465441017,-658.256262,0.00027173,7]
[377625448,1754465441026,-276.898451,0.00027173,7]
[377625449,1754465441035,-151.0,0.00027174,7]
[377625450,1754465441045,-151.0,0.00027181,7]
[377625451,1754465441055,-151.0,0.00027181,7]
[377625452,1754465441064,-151.0,0.00027182,7]
[377625453,1754465441074,-596.312707,0.00027182,7]
[377625454,1754465441084,-596.312707,0.00027182,7]
[377625455,1754465441094,-151.0,0.00027182,7]
[377625456,1754465441103,-679.513027,0.00027182,7]
[377625457,1754465441112,-679.513027,0.00027182,7]
[377625458,1754465441122,-658.256262,0.00027182,7]
[377625459,1754465441132,-658.256262,0.00027182,7]
[377625460,1754465441142,-151.0,0.00027182,7]
[377625461,1754465441151,-151.0,0.00027183,7]
[377625462,1754465441161,-151.0,0.00027183,7]
[377625463,1754465441170,-151.0,0.00027183,7]
[377625464,1754465441180,-151.0,0.00027183,7]
[377625465,1754465441189,-596.312707,0.00027183,7]
[377625466,1754465441199,-596.312707,0.00027183,7]
[377625467,1754465441208,-596.312707,0.00027183,7]
[377625468,1754465441218,-596.312707,0.00027183,7]
[377625469,1754465441228,-151.0,0.00027183,7]
[377625470,1754465441237,-165.822057,0.00027183,7]
[377625471,1754465441248,-165.822057,0.00027183,7]
[377625472,1754465441258,-151.0,0.00027183,7]
[377625473,1754465441267,-187.330614,0.00027183,7]
[377625474,1754465441276,-187.330614,0.00027183,7]
[377625475,1754465441286,-151.0,0.00027183,7]
[377625476,1754465441296,-151.0,0.00027183,7]
[377625477,1754465441305,-151.0,0.00027183,7]
[377625478,1754465441314,-314.997207,0.00027183,7]
[377625479,1754465441324,-314.997207,0.00027183,7]
[377625480,1754465441333,-613.620501,0.00027183,7]
[377625481,1754465441343,-613.620501,0.00027183,7]
[377625482,1754465441352,-679.513027,0.00027183,7]
[377625483,1754465441362,-679.513027,0.00027183,7]
[377625484,1754465441371,-658.256262,0.00027183,7]
[377625485,1754465441380,-151.0,0.00027183,7]
[377625486,1754465441390,-658.256262,0.00027183,7]
[377625487,1754465441400,-151.0,0.00027184,7]
[377625488,1754465441410,-151.0,0.00027184,7]
[377625489,1754465441419,-151.0,0.00027184,7]
[377625490,1754465441429,-154.899314,0.00027184,7]
[377625491,1754465441438,-151.0,0.00027184,7]
[377625492,1754465441448,-596.312707,0.00027184,7]
[377625493,1754465441458,-596.312707,0.00027184,7]
[377625494,1754465441468,-151.0,0.00027184,7]
[377625495,1754465441478,-151.0,0.00027184,7]
[377625496,1754465441488,-240.141681,0.00027184,7]
[377625497,1754465441498,-680.85145745,0.00027276,2]
[377625498,1754465441507,-689.71571224,0.00027276,2]
[377625499,1754465441517,-5928.43827106,0.00027325,7]
[377625500,1754465441526,-367.26269885,0.00027397,2]
[377625501,1754465441536,-151.0,0.00027397,7]
[377625502,1754465441546,-151.0,0.00027397,7]
[377625503,1754465441556,-207.788242,0.00027397,7]
[377625504,1754465441567,-500.86141247,0.00027397,2]
[377625505,1754465441577,-596.312707,0.00027397,7]
[377625506,1754465441588,-596.312711,0.00027397,7]
[377625507,1754465441597,-151.0,0.00027397,7]
[377625508,1754465441607,-151.0,0.00027397,7]
[377625509,1754465441616,-152.556737,0.00027397,7]
[377625510,1754465441626,-165.822057,0.00027397,7]
[377625511,1754465441639,-165.822057,0.00027397,7]
[377625512,1754465441648,-181.148002,0.00027397,7]
[377625513,1754465441658,-500.0,0.00027397,2]
[377625514,1754465441667,-500.0,0.00027397,7]
[377625515,1754465441678,-500.0,0.00027397,30]
[377625516,1754465441687,-500.0,0.00027397,30]
[377625517,1754465441696,-500.0,0.00027397,30]
[377625518,1754465441708,-187.330614,0.00027397,7]
[377625519,1754465441719,-187.330614,0.00027397,7]
[377625520,1754465441728,-500.0,0.00027397,30]
[377625521,1754465441738,-500.0,0.00027397,30]
[377625522,1754465441748,-500.0,0.00027397,30]
[377625523,1754465441758,-151.0,0.00027397,7]
[377625524,1754465441768,-151.0,0.00027397,7]
[377625525,1754465441779,-151.0,0.00027397,7]
[377625526,1754465441788,-314.997207,0.00027397,7]
[377625527,1754465441798,-314.997207,0.00027397,7]
[377625528,1754465441808,-613.620501,0.00027397,7]
[377625529,1754465441818,-613.620501,0.00027397,7]
[377625530,1754465441827,-500.0,0.00027397,30]
[377625531,1754465441836,-500.0,0.00027397,30]
[377625532,1754465441846,-500.0,0.00027397,30]
[377625533,1754465441855,-500.0,0.00027397,30]
[377625534,1754465441865,-500.0,0.00027397,30]
[377625535,1754465441875,-500.0,0.00027397,30]
[377625536,1754465441884,-522.63336925,0.00027397,30]
[377625537,1754465441894,-679.513027,0.00027397,7]
[377625538,1754465441904,-679.513023,0.00027397,7]
[377625539,1754465441913,-216.47163855,0.00027397,30]
[377625540,1754465441923,-658.256262,0.00027397,7]
[377625541,1754465441932,-151.0,0.00027397,7]
[377625542,1754465441942,-658.256259,0.00027397,7]
[377625543,1754465441951,-500.0,0.00027397,30]
[377625544,1754465441966,-514.17365247,0.00027397,30]
[377625545,1754465441975,-231.78005385,0.00027397,30]
[377625546,1754465441985,-312.16666667,0.00027397,30]
[377625547,1754465441995,-500.0,0.00027397,30]
[377625548,1754465442005,-500.0,0.00027397,30]
[377625549,1754465442014,-500.0,0.00027397,30]
[377625550,1754465442023,-500.0,0.00027397,30]
[377625551,1754465442033,-500.0,0.00027397,30]
[377625552,1754465442043,-156.511763,0.00027399,3]
[377625553,1754465442052,-10420.6243428,0.00027449,2]
[377625554,1754465442061,-806.91462053,0.00027449,2]
[377625555,1754465442072,-165.822057,0.00027449,7]
[377625556,1754465442082,-165.822057,0.00027449,7]
[377625557,1754465442091,-151.0,0.00027449,7]
[377625558,1754465442101,-527.46908335,0.00027458,30]
[377625559,1754465442110,-151.0,0.00027459,7]
[377625560,1754465442120,-187.330614,0.00027459,7]
[377625561,1754465442129,-187.330614,0.00027459,7]
[377625562,1754465442139,-151.0,0.00027459,7]
[377625563,1754465442149,-151.0,0.00027459,7]
[377625564,1754465442158,-314.997207,0.00027459,7]
[377625565,1754465442168,-314.997207,0.00027459,7]
[377625566,1754465442178,-613.620501,0.00027459,7]
[377625567,1754465442188,-613.620501,0.00027459,7]
[377625568,1754465442198,-500.0,0.00027468,30]
[377625569,1754465442208,-500.0,0.00027468,30]
[377625570,1754465442217,-180.365351,0.00027469,7]
[377625571,1754465442227,-180.365354,0.00027469,7]
[377625572,1754465442237,-830.64874332,0.00027521,5]
[377625573,1754465442247,-2099.308,0.00027521,2]
[377625574,1754465442257,-971.0,0.00027521,2]
[377625575,1754465442267,-636.0,0.00027521,2]
[377625576,1754465442276,-187.330614,0.00027535,7]
[377625577,1754465442286,-187.330614,0.00027535,7]
[377625578,1754465442296,-151.0,0.00027535,7]
[377625579,1754465442305,-187.614617,0.00027535,7]
[377625580,1754465442315,-151.0,0.00027535,7]
[377625581,1754465442325,-314.997207,0.00027535,7]
[377625582,1754465442334,-314.997207,0.00027535,7]
[377625583,1754465442344,-613.620501,0.00027535,7]
[377625584,1754465442354,-613.620501,0.00027535,7]
[377625585,1754465442363,-151.0,0.00027545,7]
[377625586,1754465442373,-151.0,0.00027545,7]
[377625587,1754465442383,-348.80762888,0.00027545,2]
[377625588,1754465442392,-151.0,0.00027545,7]
[377625589,1754465442402,-151.0,0.00027545,7]
[377625590,1754465442412,-151.0,0.00027545,7]
[377625591,1754465442421,-165.822057,0.00027545,7]
[377625592,1754465442430,-165.822057,0.00027545,7]
[377625593,1754465442440,-260.0,0.00027548,2]
[377625594,1754465442449,-150.0,0.00027573,5]
[377625595,1754465442459,-500.75836931,0.00027573,5]
[377625596,1754465442469,-500.0,0.00027573,5]
[377625597,1754465442479,-500.0,0.00027573,5]
[377625598,1754465442488,-393.96397647,0.00027573,5]
[377625599,1754465442497,-500.66824764,0.00027573,3]
[377625600,1754465442507,-500.0,0.00027573,5]
[377625601,1754465442516,-500.0,0.00027573,5]
[377625602,1754465442526,-500.0,0.00027573,2]
[377625603,1754465442536,-502.27358269,0.00027573,5]
[377625604,1754465442545,-500.0,0.00027573,5]
[377625605,1754465442554,-501.87617131,0.00027573,5]
[377625606,1754465442564,-500.0,0.00027573,5]
[377625607,1754465442574,-413.16299039,0.00027573,5]
[377625608,1754465442583,-500.0,0.00027573,5]
[377625609,1754465442593,-187.330614,0.00027573,7]
[377625610,1754465442603,-187.330617,0.00027573,7]
[377625611,1754465442612,-151.0,0.00027573,7]
[377625612,1754465442621,-314.997207,0.00027573,7]
[377625613,1754465442631,-314.997206,0.00027573,7]
[377625614,1754465442644,-613.620501,0.00027573,7]
[377625615,1754465442653,-613.62050284,0.00027573,7]
[377625616,1754465442663,-151.0,0.00027575,7]
[377625617,1754465442672,-151.0,0.00027575,7]
[377625618,1754465442682,-151.0,0.00027575,7]
[377625619,1754465442692,-10420.6243428,0.00027577,2]
[377625620,1754465442701,-806.91462053,0.00027577,2]
[377625621,1754465442712,-160.0,0.00027587,3]
[377625622,1754465442722,-160.0,0.00027587,3]
[377625624,1754465442842,-12657.93264304,0.00027587,3]
[377625625,1754465442852,-842.45170444,0.00027587,3]
[377625626,1754465442862,-160.0,0.00027587,3]
[377625627,1754465442872,-216.47163855,0.00027587,3]
[377625628,1754465442882,-461.26544088,0.00027587,3]
[377625629,1754465442891,-166.77908151,0.00027587,3]
[377625630,1754465442901,-231.78005385,0.00027587,3]
[377625631,1754465442910,-151.0,0.00027587,7]
[377625632,1754465442920,-151.0,0.00027587,7]
[377625633,1754465442930,-151.0,0.00027587,7]
[377625634,1754465442939,-165.822057,0.00027587,7]
[377625635,1754465442950,-165.822057,0.00027587,7]
[377625636,1754465442960,-165.822057,0.00027587,7]
[377625637,1754465442970,-165.822057,0.00027587,7]
[377625638,1754465442980,-1500.0,0.00027587,28]
[377625639,1754465442991,-1500.0,0.00027587,28]
[377625640,1754465443001,-1500.0,0.00027587,28]
[377625641,1754465443010,-1500.0,0.00027587,28]
[377625642,1754465443020,-1500.0,0.00027587,28]
[377625643,1754465443030,-1500.0,0.00027587,28]
[377625644,1754465443040,-1500.0,0.00027587,28]
[377625645,1754465443050,-1500.0,0.00027587,28]
[377625646,1754465443060,-1500.0,0.00027587,28]
[377625647,1754465443072,-1500.0,0.00027587,28]
[377625648,1754465443082,-1500.0,0.00027587,28]
[377625649,1754465443092,-1500.0,0.00027587,28]
[377625650,1754465443102,-1500.0,0.00027587,28]
[377625651,1754465443111,-1500.0,0.00027587,28]
[377625652,1754465443121,-1500.0,0.00027587,28]
[377625653,1754465443131,-1500.0,0.00027587,28]
[377625654,1754465443141,-1500.0,0.00027587,28]
[377625655,1754465443151,-1500.0,0.00027587,28]
[377625656,1754465443160,-1500.0,0.00027587,28]
[377625657,1754465443170,-212.684675,0.00027587,28]
[377625658,1754465443180,-156.511763,0.000276,8]
[377625659,1754465443190,-156.511763,0.000276,28]
[377625660,1754465443200,-644.0,0.000276,2]
[377625661,1754465443209,-206.0,0.0002761,30]
[377625662,1754465443219,-156.511763,0.00027612,8]
[377625663,1754465443228,-156.511763,0.00027625,8]
[377625664,1754465443238,-156.511763,0.00027638,8]
[377625665,1754465443248,-10420.6243428,0.00027646,2]
[377625666,1754465443259,-806.91462053,0.00027646,2]
[377625667,1754465443273,-156.511763,0.0002765,8]
[377625668,1754465443283,-156.479824,0.0002765,8]
[377625669,1754465443293,-500.0,0.00027656,30]
[377625670,1754465443303,-151.0,0.00027657,7]
[377625671,1754465443313,-151.0,0.00027657,7]
[377625672,1754465443323,-151.0,0.00027657,7]
[377625673,1754465443333,-151.0,0.0002766,7]
[377625674,1754465443343,-151.0,0.0002766,7]
[377625675,1754465443353,-151.0,0.0002766,7]
[377625676,1754465443362,-165.822057,0.0002766,7]
[377625677,1754465443372,-165.822057,0.0002766,7]
[377625678,1754465443381,-151.0,0.0002767,7]
[377625679,1754465443391,-151.0,0.0002767,7]
[377625682,1754465443400,-151.0,0.0002767,7]
[377625684,1754465443410,-151.0,0.0002767,7]
[377625686,1754465443419,-151.0,0.0002767,7]
[377625688,1754465443429,-500.0,0.00027671,2]
[377625690,1754465443439,-165.822057,0.00027673,7]
[377625691,1754465443449,-165.822057,0.00027673,7]
[377625692,1754465443458,-160.0,0.00027674,2]
[377625693,1754465443469,-151.0,0.00027676,7]
[377625694,1754465443479,-151.0,0.00027676,7]
[377625695,1754465443488,-151.0,0.00027676,7]
[377625696,1754465443498,-151.0,0.00027676,7]
[377625697,1754465443509,-244.678672,0.00027676,7]
[377625698,1754465443518,-151.0,0.00027687,7]
[377625699,1754465443528,-151.0,0.00027687,7]
[377625700,1754465443538,-156.511763,0.00027727,28]
[377625701,1754465443549,-420.0,0.00027748,2]
[377625702,1754465443558,-151.0,0.0002779,7]
[377625703,1754465443568,-151.0,0.0002779,7]
[377625704,1754465443577,-151.0,0.000278,7]
[377625705,1754465443587,-151.0,0.000278,7]
[377625706,1754465443597,-600.0,0.0002784,2]
[377625707,1754465443607,-505.04802497,0.00027851,10]
[377625708,1754465443618,-156.511763,0.00027855,28]
[377625709,1754465443628,-463.59762003,0.00027873,2]
[377625710,1754465443643,-163.388706,0.00027873,7]
[377625711,1754465443653,-151.0,0.00027873,7]
[377625712,1754465443663,-165.822057,0.00027873,7]
[377625713,1754465443674,-165.822055,0.00027873,7]
[377625714,1754465443683,-645.0477713,0.00027884,10]
[377625715,1754465443693,-151.0,0.000279,7]
[377625716,1754465443702,-179.846017,0.000279,7]
[377625717,1754465443713,-3137.91876215,0.00027914,2]
[377625718,1754465443723,-1755.4,0.00027924,6]
[377625719,1754465443732,-500.0,0.00027945,2]
[377625720,1754465443742,-151.0,0.00027953,7]
[377625721,1754465443751,-160.0,0.00027963,3]
[377625722,1754465443761,-500.0,0.00027973,5]
[377625723,1754465443771,-500.0,0.00027973,5]
[377625724,1754465443780,-500.0,0.00027973,2]
[377625725,1754465443790,-500.0,0.00027973,5]
[377625726,1754465443800,-500.0,0.00027973,5]
[377625727,1754465443810,-500.0,0.00027973,5]
[377625728,1754465443819,-504.84484149,0.00027973,5]
[377625729,1754465443829,-500.0,0.00027973,5]
[377625730,1754465443839,-151.0,0.00027973,7]
[377625731,1754465443850,-10420.6243428,0.0002798,2]
[377625732,1754465443861,-806.91462053,0.0002798,2]
[377625733,1754465443871,-156.511763,0.00027982,28]
[377625734,1754465443882,-151.0,0.00027983,7]
[377625735,1754465443892,-12657.93264304,0.00027986,2]
[377625736,1754465443902,-160.0,0.00027986,2]
[377625737,1754465443912,-160.0,0.00027986,2]
[377625738,1754465443922,-6000.0,0.00027998,2]
[377625739,1754465443933,-538.0773,0.00028,2]
[377625740,1754465443946,-527.46908335,0.00028,3]
[377625741,1754465443956,-25000.0,0.00028,2]
[377625742,1754465443967,-1600.0,0.00028015,7]
[377625743,1754465443977,-200.0,0.0002802,20]
[377625744,1754465443987,-10420.6243428,0.00028063,2]
[377625745,1754465443998,-806.91462053,0.00028063,2]
[377625746,1754465444008,-435.7221146,0.00028073,5]
[377625747,1754465444019,-500.0,0.00028073,5]
[377625748,1754465444029,-360.0,0.00028096,2]
[377625749,1754465444039,-156.511763,0.00028099,3]
[377625750,1754465444049,-156.511763,0.00028109,28]
[377625751,1754465444059,-156.479824,0.00028109,28]
[377625752,1754465444070,-153.0,0.00028113,2]
[377625753,1754465444080,-153.0,0.00028113,2]
[377625754,1754465444090,-153.0,0.00028113,2]
[377625755,1754465444100,-153.0,0.00028113,2]
[377625756,1754465444110,-153.0,0.00028113,2]
[377625757,1754465444121,-153.0,0.00028113,2]
[377625758,1754465444132,-153.0,0.00028113,2]
[377625759,1754465444143,-153.0,0.00028113,2]
[377625760,1754465444155,-153.0,0.00028113,2]
[377625761,1754465444165,-153.0,0.00028113,2]
[377625762,1754465444177,-153.0,0.00028113,2]
[377625763,1754465444188,-153.0,0.00028113,2]
[377625764,1754465444199,-153.0,0.00028113,2]
[377625765,1754465444208,-153.0,0.00028113,2]
[377625766,1754465444219,-153.0,0.00028113,2]
[377625767,1754465444229,-153.0,0.00028113,2]
[377625768,1754465444239,-153.0,0.00028113,2]
[377625769,1754465444248,-153.0,0.00028113,2]
[377625770,1754465444258,-153.0,0.00028113,2]
[377625771,1754465444268,-153.0,0.00028113,2]
[377625772,1754465444278,-153.0,0.00028113,2]
[377625773,1754465444288,-153.0,0.00028113,2]
[377625774,1754465444297,-153.0,0.00028113,2]
[377625775,1754465444307,-153.0,0.00028113,2]
[377625776,1754465444317,-153.0,0.00028113,2]
[377625777,1754465444326,-153.0,0.00028113,2]
[377625778,1754465444335,-153.0,0.00028113,2]
[377625779,1754465444345,-153.0,0.00028113,2]
[377625780,1754465444355,-153.0,0.00028113,2]
[377625781,1754465444365,-153.0,0.00028113,2]
[377625782,1754465444375,-153.0,0.00028113,2]
[377625783,1754465444385,-153.0,0.00028113,2]
[377625784,1754465444395,-153.0,0.00028113,2]
[377625785,1754465444404,-153.0,0.00028113,2]
[377625786,1754465444413,-153.0,0.00028113,2]
[377625787,1754465444424,-153.0,0.00028113,2]
[377625788,1754465444434,-153.0,0.00028113,2]
[377625789,1754465444445,-153.0,0.00028113,2]
[377625790,1754465444455,-153.0,0.00028113,2]
[377625791,1754465444466,-153.0,0.00028113,2]
[377625792,1754465444475,-153.0,0.00028113,2]
[377625793,1754465444485,-153.0,0.00028113,2]
[377625794,1754465444494,-153.0,0.00028113,2]
[377625795,1754465444503,-153.0,0.00028113,2]
[377625796,1754465444513,-153.0,0.00028113,2]
[377625797,1754465444522,-153.0,0.00028113,2]
[377625798,1754465444531,-153.0,0.00028113,2]
[377625799,1754465444541,-153.0,0.00028113,2]
[377625800,1754465444550,-153.0,0.00028113,2]
[377625801,1754465444560,-153.0,0.00028113,2]
[377625802,1754465444570,-153.0,0.00028113,2]
[377625803,1754465444579,-153.0,0.00028113,2]
[377625804,1754465444589,-153.0,0.00028113,2]
[377625805,1754465444599,-153.0,0.00028113,2]
[377625806,1754465444608,-153.0,0.00028113,2]
[377625807,1754465444618,-153.0,0.00028113,2]
[377625808,1754465444626,-250.0,0.00028121,5]
[377625809,1754465444641,-504.38137586,0.00028121,5]
[377625810,1754465444654,-178.23066169,0.00028121,5]
[377625811,1754465444664,-654.39329513,0.00028121,5]
[377625812,1754465444675,-1000.0,0.00028121,5]
[377625813,1754465444684,-1000.0,0.00028121,2]
[377625814,1754465444694,-1014.32699212,0.00028121,5]